Cogmind - Beta 17.1 *** ADVENTURER MODE // 2026.09.18 @ 04:55:22 Player: F-forge Result: Destroyed by B-75 Beast with Magnetic Acceleration Cannon Performance ------------- Evolutions (4) 2000 Regions Visited (12) 2400 Robots Destroyed (260) 1300 Value Destroyed (6635) 6635 Prototype IDs (29) 580 Alien Tech Used (0) 0 Bonus (1201) 1201 TOTAL SCORE: 14116 Bonus ------- High Alert Combat Kills 44 Follower Combat Kills 884 Aligned with FarCom 300 Friendly Fire -27 Cogmind --------- Core Integrity 0/850 Matter 300/300 Energy 500/500 System Corruption 6% Temperature Cool (0) Movement Walking (330) Ox3 Location -6/Extension Parts ------- > --- POWER (2) -------- Reinforced Deuterium Engine Fission Core > --- PROPULSION (4) --- Armored Leg > --- UTILITY (6) ------ Large Storage Unit Advanced Visual Processing Unit Advanced Signal Interpreter Advanced Targeting Computer Armor Integrity Analyzer Armor Integrity Analyzer > --- WEAPON (3) ------- Beamcaster Autogun Hammer > --- INVENTORY (15) --- Improved Ion Engine Carbon-fiber Leg Improved Heat Sink Trap Scanner Improved Sensor Array Improved Signal Interpreter Advanced Melee Analysis Suite Improved Reaction Control System Heavy Beamcaster Heavy Beamcaster YOLO Cannon Heavy Rocket Launcher Remote Datajack Carbide Saw Peak State ------------ > --- POWER ------------ Improved Ion Engine Fission Core > --- PROPULSION ------- Flexi-carbon Leg Armored Leg Armored Leg Improved VSS Leg > --- UTILITY ---------- Large Storage Unit Advanced Signal Interpreter Advanced Targeting Computer Advanced Targeting Computer Armor Integrity Analyzer Armor Integrity Analyzer > --- WEAPON ----------- Beamcaster YOLO Cannon > --- INVENTORY -------- Carbon-fiber Leg Trap Scanner Advanced Visual Processing Unit Improved Sensor Array Improved Signal Interpreter Advanced Melee Analysis Suite Advanced ECM Suite Improved Reaction Control System Heavy Beamcaster Heavy Beamcaster Autogun Heavy Rocket Launcher Remote Datajack Carbide Saw [Rating: 77] Favorites ----------- Power Light Angular Momentum Engine Engine Light Angular Momentum Engine Power Core Fission Core Propulsion Armored Treads Treads Armored Treads Leg Armored Leg Utility Large Storage Unit Device Improved Terrain Scanner Storage Large Storage Unit Processor Advanced Signal Interpreter Hackware Improved Hacking Suite Protection Light Armor Plating Weapon Heavy Flail Energy Gun Pulse Rifle Energy Cannon Heavy Plasma Cannon Ballistic Gun Autogun Ballistic Cannon Advanced Assault Cannon Launcher EMP Blaster Special Weapon Mining Laser Impact Weapon Heavy Flail Slashing Weapon Axe Build | -11 -10 -10 -9 -9 -9 -8 -8 -8 -8 -8 -6 -6 ------- Run | Yrd Mat Min Mat Min Exi Min Mat Sto Rec Scr Fac Ext Slots Evolved 8 | . . . 2 . . . 2 . . . 4 . Power 1 | . . . . . . . . . . . 1 . Propulsion 2 | . . . 1 . . . 1 . . . . . Utility 4 | . . . 1 . . . 1 . . . 2 . Weapon 1 | . . . . . . . . . . . 1 . Parts Attached 158 | 7 7 8 27 7 4 4 10 10 . 1 40 33 Power 35 | 1 . 2 2 2 . 1 1 2 . . 11 13 Engine 26 | 1 . 1 2 2 . 1 1 2 . . 7 9 Core 9 | . . 1 . . . . . . . . 4 4 Reactor . | . . . . . . . . . . . . . Propulsion 47 | 2 2 3 13 . . 2 4 5 . . 12 4 Treads 11 | . . . 4 . . . . 5 . . 2 . Leg 36 | 2 2 3 9 . . 2 4 . . . 10 4 Wheel . | . . . . . . . . . . . . . Hover . | . . . . . . . . . . . . . Flight . | . . . . . . . . . . . . . Utility 37 | 2 . 1 8 2 2 1 4 1 . 1 8 7 Device 13 | 1 . 1 2 . 1 1 1 . . . 5 1 Storage 7 | 1 . . 3 . 1 . 1 . . . . 1 Processor 10 | . . . 1 1 . . 1 . . 1 2 4 Hackware 2 | . . . . . . . . . . . 1 1 Protection 5 | . . . 2 1 . . 1 1 . . . . Artifact . | . . . . . . . . . . . . . Weapon 39 | 2 5 2 4 3 2 . 1 2 . . 9 9 Energy Gun 12 | 1 3 1 . . 1 . . 1 . . 1 4 Energy Cannon 2 | . . . . . 1 . . . . . 1 . Ballistic Gun 9 | 1 . . 1 1 . . 1 1 . . 2 2 Ballistic Cannon 2 | . . . . . . . . . . . 1 1 Launcher 8 | . 1 1 3 1 . . . . . . 1 1 Special Weapon 2 | . 1 . . . . . . . . . 1 . Impact Weapon 2 | . . . . 1 . . . . . . . 1 Slashing Weapon 2 | . . . . . . . . . . . 2 . Piercing Weapon . | . . . . . . . . . . . . . Special Melee Weapon . | . . . . . . . . . . . . . Unidentified Prototypes 4 | . . . . . 3 . . 1 . . . . Parts Lost 41 | . . 2 . 4 . 2 . 3 . . 14 16 Power 13 | . . 1 . 2 . . . 1 . . 3 6 Propulsion 10 | . . . . 1 . . . . . . 4 5 Utility 6 | . . . . . . 1 . 2 . . 2 1 Weapon 12 | . . 1 . 1 . 1 . . . . 5 4 Highest Loss Streak 7 | . . 1 . 3 . 1 . 2 . . 6 7 To Critical Strikes . | . . . . . . . . . . . . . Average Backups 12 | 3 7 7 10 13 14 12 12 12 13 13 13 13 Power . | . . . . . . . . . . . . . Propulsion . | 1 2 2 2 3 2 . . 1 1 1 . . Utility 6 | . 2 3 3 6 6 6 6 6 6 7 8 7 Weapon 4 | . 3 2 3 3 6 5 4 4 5 4 3 5 Tool/Special . | . . . . . . . . . . . . . Unused Backups 28 | . 1 1 6 . . 1 2 . 2 2 8 5 Power 1 | . . . . . . . . . 1 . . . Propulsion 3 | . . . 2 . . . . . . . 1 . Utility 15 | . . . 4 . . 1 1 . . 1 4 4 Weapon 8 | . 1 1 . . . . 1 . 1 1 2 1 Tool/Special 1 | . . . . . . . . . . . 1 . Average Slot Usage (%) 95 | . 100 99 98 91 68 99 99 97 100 100 91 96 Engine 8 | . 14 8 11 8 11 11 9 7 9 9 5 7 Core 2 | . . 5 . . . . . . . . 6 4 Treads 11 | . . . 8 27 17 . . 23 36 36 14 . Leg 16 | . 28 28 23 . 6 33 36 12 . . 9 25 Device 9 | . 14 14 10 9 11 10 8 5 9 9 10 5 Storage 8 | . 14 14 10 11 11 11 9 9 9 9 6 6 Processor 14 | . . . 10 11 11 11 17 18 18 18 14 18 Hackware 2 | . . . . . . . . . . . 2 7 Energy Gun 6 | . 25 14 11 5 . . . 5 9 9 5 5 Ballistic Gun 5 | . . 9 10 5 . 20 8 5 . . 5 3 Impact Weapon 2 | . . . . 3 . 1 8 5 9 9 3 . Slashing Weapon 1 | . . . . . . . . . . . 1 5 Peak Build Rating 77 | 7 9 11 17 19 29 23 38 44 33 36 70 77 Average Rating 39 | 6 8 8 13 14 9 18 35 32 33 34 58 65 On Entrance 21 | . 7 9 9 17 9 11 19 38 33 33 36 64 Avg Prop Armor Cover (%) 3 | . . . . . . . . 3 . . . . Naked Turns . | . . . . . . . . . . . . . Heaviest Build 69 | 15 16 16 36 41 42 41 37 42 36 36 69 55 Greatest Support 82 | 20 20 20 66 66 43 35 72 80 80 80 82 68 Greatest Overweight (x) 13 | 1 . . 1 . . 1 . 1 . . 13 3 Average Overweight (x) . | . . . . . . . . . . . . . Largest Inventory Capacity 15 | 8 8 8 15 15 15 15 15 15 15 15 15 15 Average Capacity 13 | 7 8 8 10 15 15 15 15 15 15 15 15 15 Most Carried 15 | 4 8 8 15 15 15 15 15 15 15 15 15 15 Average Carried 13 | 3 7 7 10 13 14 13 14 14 15 14 14 14 Final Capacity 15 | 8 8 8 15 15 15 15 15 15 15 15 15 15 Final Carried 15 | 4 8 8 15 15 14 15 15 15 15 15 15 15 Scrap Suit Usage (%) 12 | . . . . . . . . . . . 51 . Parts Cannibalized 8 | . . . . . . . . . . . 8 . Class Distribution -------------------- 23% | Mutant 17% | Hacker-Assassin 14% | Scavenger-Mutant 10% | Commander-Assassin 10% | Assassin 7% | Commander-Mutant 6% | Hacker-Mutant 4% | Scavenger-Skirmisher 4% | Scavenger-Assassin Dominant Class ---------------- Mutant | -10/Materials Scavenger-Mutant | -10/Mines Scavenger-Mutant | -9/Materials Mutant | -9/Mines Mutant | -9/Exiles Scavenger-Skirmisher | -8/Mines Scavenger-Assassin | -8/Materials Mutant | -8/Storage Commander-Assassin | -8/Recycling Commander-Mutant | -8/Scraptown Assassin | -6/Factory Hacker-Assassin | -6/Extension Resources | -11 -10 -10 -9 -9 -9 -8 -8 -8 -8 -8 -6 -6 ----------- Run | Yrd Mat Min Mat Min Exi Min Mat Sto Rec Scr Fac Ext Matter Collected 5628 | 288 140 253 848 371 10 356 266 464 10 10 1127 1485 Remotely . | . . . . . . . . . . . . . Salvage Created 9289 | 144 459 449 1641 388 . 410 501 779 187 . 2811 1520 Parts 459 | 8 33 33 114 15 . 29 27 46 5 . 88 61 Haulers Intercepted 12 | . 1 . 4 . . . . 1 . . 2 4 Recyclers Shooed 8 | . . . 1 . . . 1 . . . 5 1 Parts Field Recycled . | . . . . . . . . . . . . . Retrieved Matter . | . . . . . . . . . . . . . Parts Self-Destructed . | . . . . . . . . . . . . . Prevented . | . . . . . . . . . . . . . Parts Restored . | . . . . . . . . . . . . . Kills | -11 -10 -10 -9 -9 -9 -8 -8 -8 -8 -8 -6 -6 ------- Run | Yrd Mat Min Mat Min Exi Min Mat Sto Rec Scr Fac Ext Combat Hostiles Destroyed 163 | . 13 11 36 23 . 8 5 20 2 . 31 14 Melee 6 | . . . . . . . 1 . 1 . 2 2 Guns 76 | . 6 5 28 1 . 2 3 6 1 . 19 5 Cannons 10 | . . . . . . . . 1 . . 2 7 AOE 64 | . 7 6 8 22 . 6 1 12 . . 2 . Classes Destroyed 19 | 2 6 . 3 2 . 2 . 2 . . 1 1 Worker 19 | . 1 1 . 2 . 1 4 . . . 8 2 Builder 20 | . 2 1 3 4 . 3 . 2 . . 2 3 Tunneler 19 | 2 1 4 . 3 . 3 1 . . . 2 3 Hauler 12 | . 1 . 4 . . . . 1 . . 2 4 Recycler 23 | 1 . 1 2 2 . 2 1 1 1 . 8 4 Mechanic 1 | . . . 1 . . . . . . . . . Operator 2 | . . . 1 . . . . . . . . 1 Watcher 18 | . 3 . 5 . . . 2 1 . . 4 3 Swarmer 47 | . 6 6 15 3 . 4 . . . . 9 4 Grunt 62 | . 7 5 13 2 . 2 2 14 1 . 9 7 Brawler 2 | . . . . . . 1 . 1 . . . . Duelist 1 | . . . . . . . . 1 . . . . Protector 2 | . . . . . . . . 2 . . . . Sentry 16 | . . . 8 . . . 2 2 1 . 1 2 Demolisher 1 | . . . . 1 . . . . . . . . Hunter 5 | . . . . . . 1 1 . . . 3 . Programmer 9 | . . . . . . . . . . . 9 . Behemoth 1 | . . . . . . . . . . . . 1 Assembled 17 | . . . . 17 . . . . . . . . Best Kill Streak 17 | 2 7 4 7 17 . 5 2 8 1 . 4 4 Combat Bots Only 17 | . 5 3 6 17 . 4 2 7 1 . 3 3 Max Kills in Single Turn 5 | 1 3 3 4 5 . 4 1 4 1 . 2 2 Gunslinging 1 | . . . 1 . . . . . . . . . Exploded 5 | . 3 3 4 5 . 3 1 3 . . 1 . Melee 1 | . . . . . . . 1 . 1 . 1 1 Uniques/NPCs Destroyed . | . . . . . . . . . . . . . Combat | -11 -10 -10 -9 -9 -9 -8 -8 -8 -8 -8 -6 -6 -------- Run | Yrd Mat Min Mat Min Exi Min Mat Sto Rec Scr Fac Ext Hostile Shots Fired 1289 | . 20 27 106 68 . 24 24 152 . . 383 485 Missed 428 | . 10 6 29 19 . 3 6 44 . . 113 198 Hits 861 | . 10 21 77 49 . 21 18 108 . . 270 287 Melee 8 | . . . . 7 . . . 1 . . . . Projectile 853 | . 10 21 77 42 . 21 18 107 . . 270 287 AOE 10 | . . . . 10 . . . . . . . . Critical Strikes 21 | . . . 1 . . 1 1 7 . . 3 8 Part Disruptions 1 | . . . . 1 . . . . . . . . Damage Taken 10299 | . 199 151 678 860 . 286 204 1432 9 . 3362 3118 Core 1420 | . 5 20 88 99 . 60 70 206 . . 407 465 Absorbed by Shields 52 | . . . . . . . . . 2 . 50 . Ignored by Resistances 2971 | . 58 50 206 242 . 83 59 400 3 . 972 898 Regen/Repaired (Parts) 1098 | . . . 46 . . . 11 . . 681 360 . Core Remaining (%) 69 | 100 . 90 . . . 38 . . . 49 . . Volleys Fired 589 | 6 35 33 108 34 . 24 27 50 2 . 133 137 Largest 3 | 2 2 2 2 2 . 2 1 2 1 . 3 2 Hottest 161 | 70 145 85 100 100 . 43 33 100 63 . 153 161 Shots Fired 933 | 12 59 55 197 37 . 44 27 55 2 . 224 221 Gun 757 | 12 51 50 188 14 . 40 23 37 2 . 196 144 Cannon 87 | . . . . . . . . 2 . . 17 68 Launcher 60 | . 4 5 3 17 . 4 4 16 . . 6 1 Special 29 | . 4 . 6 6 . . . . . . 5 8 Kinetic 440 | 6 . 21 92 11 . 40 23 26 . . 84 137 Thermal 388 | 6 25 27 102 9 . . . 13 2 . 129 75 Explosive 50 | . 4 5 2 13 . 4 . 15 . . 6 1 Electromagnetic 42 | . 30 2 1 4 . . 4 1 . . . . Robot Hit Streak 48 | 10 12 14 48 8 . 12 9 20 22 . 26 27 Robot Miss Streak 7 | . 4 1 3 2 . 3 2 1 . . 3 7 Penetration Max 1 | . . . . . . . 1 . . . . 1 Secondary Targets 6 | . 1 . 2 . . . . 1 . . 1 1 Max Gunslinging Chain 1 | . 1 . 1 . . . . 1 . . 1 1 Shots Hit Robots 793 | 10 39 39 154 34 . 35 27 52 4 . 214 185 Core Hits 413 | 3 27 25 75 47 . 24 13 39 3 . 76 81 Critical Kills 4 | . . . . . . . . . 1 . 3 . Critical Parts Destroyed 10 | . . 1 1 1 . . 1 . . . 5 1 Critical Strikes 39 | . 2 2 4 1 . . 1 1 1 . 17 10 Burn 15 | . 2 1 3 . . . . 1 . . 4 4 Meltdown 3 | . . . . . . . . . . . 3 . Destroy 3 | . . 1 1 . . . . . . . 1 . Blast 3 | . . . . . . . . . . . 1 2 Smash 8 | . . . . 1 . . 1 . 1 . 4 1 Sever 7 | . . . . . . . . . . . 4 3 Melee Attacks 217 | . . . . 12 . 3 17 9 5 . 93 78 Impact 99 | . . . . 12 . 3 17 9 5 . 52 1 Slashing 118 | . . . . . . . . . . . 41 77 Piercing . | . . . . . . . . . . . . . Sneak Attacks 58 | . . . . 8 . 3 5 1 2 . 25 14 Combat Hostiles . | . . . . . . . . . . . . . Follow-up Attacks . | . . . . . . . . . . . . . Damage Inflicted 23988 | 131 1128 874 2568 2668 . 1163 1202 2591 163 . 6481 5019 Guns 9549 | 131 535 456 2245 195 . 334 437 535 33 . 2645 2003 Cannons 1983 | . . . . . . . . 131 . . 528 1324 Explosions 5579 | . 545 418 323 1502 . 438 73 1675 . . 533 72 Melee 6648 | . . . . 870 . 355 676 245 130 . 2752 1620 Ramming 85 | . . . . 5 . 36 16 5 . . 23 . Kinetic 5563 | 54 . 185 900 166 . 334 437 361 . . 961 2165 Thermal 6486 | 77 372 327 1345 155 . 102 . 618 33 . 2295 1162 Explosive 4570 | . 380 362 263 1397 . 336 . 1310 . . 450 72 Electromagnetic 636 | . 376 . 60 75 . . 73 52 . . . . Impact 4230 | . . . . 870 . 355 676 245 130 . 1918 36 Slashing 2418 | . . . . . . . . . . . 834 1584 Piercing . | . . . . . . . . . . . . . Highest Corruption 6 | . . . . 1 1 1 . . . . 6 6 Average Corruption 4 | . . . . 1 1 1 . . . . 4 6 Corruption Purged . | . . . . . . . . . . . . . Corruption Blocked . | . . . . . . . . . . . . . Effects 302 | . . . . 1 5 12 . . . . 118 166 Message Errors 78 | . . . . . 4 8 . . . . 26 40 Matter Fused 66 | . . . . . . 2 . . . . 27 37 Heat Flow Errors 41 | . . . . 1 . . . . . . 16 24 Energy Discharges 33 | . . . . . 1 . . . . . 13 19 Parts Fused 3 | . . . . . . . . . . . 1 2 Data Loss (minor) 29 | . . . . . . 1 . . . . 14 14 Data Loss (major) 21 | . . . . . . . . . . . 8 13 Misfires 20 | . . . . . . . . . . . 7 13 Alerts 8 | . . . . . . 1 . . . . 5 2 Weapon Failures 3 | . . . . . . . . . . . 1 2 Overload Shots . | . . . . . . . . . . . . . Overflow Damage 2500 | . 37 73 . 512 . 316 292 23 40 . 933 274 Projectiles 65 | . . . . . . . . . . . . 65 Explosions 143 | . 37 73 . 7 . 21 . 3 . . 2 . Melee 2292 | . . . . 505 . 295 292 20 40 . 931 209 Knockbacks 42 | . . . . 4 . . 3 4 1 . 14 16 Impact 24 | . . . . 4 . . 3 4 1 . 12 . Kinetic 17 | . . . . . . . . . . . 1 16 Secondary 1 | . . . . . . . . . . . 1 . Self-Inflicted Damage 460 | . 122 . 2 149 . 28 . 107 . . 37 15 Shots 21 | . 5 . 1 6 . 2 . 5 . . 1 1 Rammed 3 | . . . . 1 . . . 1 . . 1 . Targets Rammed 11 | . . . . 1 . 5 1 2 . . 2 . Kicked 7 | . . . . . . 5 1 . . . 1 . Crushed 1 | . . . . . . . . 1 . . . . Highest Temperature 412 | 36 156 80 233 155 . 77 7 267 35 . 412 383 Average Temperature 79 | 15 46 27 50 50 . 31 4 107 21 . 88 108 Received Heat Transfer 3331 | . 42 69 294 32 . 135 117 855 7 . 824 956 Effects 13 | . . . . . . . . . . . 5 8 Shutdowns 3 | . . . . . . . . . . . 2 1 Energy Bleed 2 | . . . . . . . . . . . 1 1 Interference 7 | . . . . . . . . . . . 1 6 Short Circuit 1 | . . . . . . . . . . . 1 . Siege Activations . | . . . . . . . . . . . . . Martial Activations . | . . . . . . . . . . . . . Shielding Activations . | . . . . . . . . . . . . . Robots Disrupted . | . . . . . . . . . . . . . Combat Hostiles . | . . . . . . . . . . . . . Robots Corrupted 18 | . . . . 5 . . 3 1 1 . 7 1 Combat Hostiles 3 | . . . . . . . . 1 . . 2 . Parts Fried 51 | . 3 . . 9 . 5 5 1 2 . 26 . Impact Corruptions 57 | . . . . 17 . 5 8 2 2 . 22 1 Robots Melted 5 | . . . . . . . . . . . 5 . Combat Hostiles 4 | . . . . . . . . . . . 4 . Parts Melted 29 | . 2 3 4 . . . . 1 . . 14 5 Heat Transferred 13793 | 222 929 901 3478 374 . 150 . 744 74 . 4501 2420 Parts Sabotaged . | . . . . . . . . . . . . . Parts Stolen . | . . . . . . . . . . . . . Parts Stripped . | . . . . . . . . . . . . . Power Chain Reactions 7 | . 4 . . 2 . . 1 . . . . . Alert | -11 -10 -10 -9 -9 -9 -8 -8 -8 -8 -8 -6 -6 ------- Run | Yrd Mat Min Mat Min Exi Min Mat Sto Rec Scr Fac Ext Maximum Alert Level 2 | . 1 . 1 . . . . 2 . . . . Low Security (%) 95 | 100 76 100 89 100 . 100 100 30 100 . 100 100 Level 1 3 | . 23 . 10 . . . . 26 . . . . Level 2 1 | . . . . . . . . 43 . . . . Level 3 . | . . . . . . . . . . . . . Level 4 . | . . . . . . . . . . . . . Level 5 . | . . . . . . . . . . . . . High Security . | . . . . . . . . . . . . . Max Security . | . . . . . . . . . . . . . Peak Influence 485 | 10 274 177 282 84 . 167 69 485 119 . 126 100 Initial 119 | . . 36 3 . . . . 10 119 . . . Average 39 | . 129 71 80 11 . 24 8 292 37 . 17 7 Influence Increases 7276 | 15 557 417 1125 290 . 287 265 728 354 . 1962 1276 Destroy 0b10 Robot/C 3400 | . 260 220 720 120 . 160 100 380 60 . 900 480 Destroy 0b10 Robot/NC 585 | 15 40 35 80 55 . 45 40 35 5 . 135 100 Destroy Leader 812 | . 58 40 188 30 . 30 44 74 . . 262 86 Allied During Kill 128 | . . . . . . . . 3 24 . 66 35 Successful Hack 238 | . 28 . 16 . . . 22 11 55 . 103 3 Select Force Hacks 380 | . 60 . . . . . . . 180 . 110 30 Disable Machine 333 | . 36 72 27 9 . 18 27 63 9 . 63 9 Destroy Structure 500 | . 45 35 19 76 . 34 17 102 21 . 128 23 Partial Spotted 15 | . . . . . . . . . . . . 15 Lose Combat Pursuer 885 | . 30 15 75 . . . 15 60 . . 195 495 Influence Decreases 7276 | 15 447 516 1136 290 . 287 235 396 716 . 1962 1276 Entered New Map 345 | . . 74 8 . . . . 20 243 . . . Time Decay 6361 | 15 447 422 1128 280 . 277 235 325 473 . 1664 1095 Lost Part 210 | . . 20 . 10 . 10 . 30 . . 110 30 Lost Ally 360 | . . . . . . . . 21 . . 188 151 Squads Dispatched 45 | . 2 . 5 . . . 1 4 . . 27 6 Investigation 19 | . 2 . 4 . . . 1 . . . 9 3 Extermination 12 | . . . . . . . . . . . 12 . Reinforcement 12 | . . . 1 . . . . 2 . . 6 3 Assault 2 | . . . . . . . . 2 . . . . Garrison . | . . . . . . . . . . . . . Intercept . | . . . . . . . . . . . . . Searches Triggered . | . . . . . . . . . . . . . Construction Impeded 6 | . . . . . . . . 1 . . 3 2 Haulers Reinforced 1 | . . . . . . . . . . . 1 . Active Scanning Responses . | . . . . . . . . . . . . . Cargo Convoy Interrupts . | . . . . . . . . . . . . . Stealth | -11 -10 -10 -9 -9 -9 -8 -8 -8 -8 -8 -6 -6 --------- Run | Yrd Mat Min Mat Min Exi Min Mat Sto Rec Scr Fac Ext Distress Signals 16 | . 2 . 2 . . 1 1 3 . . 1 6 Communications Jammed . | . . . . . . . . . . . . . Distress Signals . | . . . . . . . . . . . . . Times Spotted 275 | . 20 12 48 25 . 6 9 35 2 . 71 47 Peak Tracking Total 19 | . 7 3 5 19 . 3 2 8 1 . 7 4 Tactical Retreats 50 | . 1 1 4 1 . . 1 2 . . 9 31 Traps | -11 -10 -10 -9 -9 -9 -8 -8 -8 -8 -8 -6 -6 ------- Run | Yrd Mat Min Mat Min Exi Min Mat Sto Rec Scr Fac Ext Traps Triggered 10 | . . . 4 . . . . 1 . . 4 1 Indirectly . | . . . . . . . . . . . . . Trap Hack Attempts . | . . . . . . . . . . . . . Triggered . | . . . . . . . . . . . . . Disarmed . | . . . . . . . . . . . . . Reprogrammed . | . . . . . . . . . . . . . Reused . | . . . . . . . . . . . . . Traps Extracted . | . . . . . . . . . . . . . Installed . | . . . . . . . . . . . . . Triggered . | . . . . . . . . . . . . . Machines | -11 -10 -10 -9 -9 -9 -8 -8 -8 -8 -8 -6 -6 ---------- Run | Yrd Mat Min Mat Min Exi Min Mat Sto Rec Scr Fac Ext Machines Disabled 37 | . 4 8 3 1 . 2 3 7 1 . 7 1 Max in Single Turn 3 | . 1 3 1 1 . 2 1 1 1 . 1 1 Garrison Access 2 | . . . . . . . . . . . 2 . Machines Repaired . | . . . . . . . . . . . . . Machines Dismantled . | . . . . . . . . . . . . . Machines Sabotaged . | . . . . . . . . . . . . . Overloaded Fab Kills . | . . . . . . . . . . . . . Hacking | -11 -10 -10 -9 -9 -9 -8 -8 -8 -8 -8 -6 -6 --------- Run | Yrd Mat Min Mat Min Exi Min Mat Sto Rec Scr Fac Ext Machines Accessed 82 | . 10 . 13 . 2 . 5 3 11 . 31 7 Terminals 51 | . 8 . 9 . . . 3 2 5 . 18 6 Fabricators 2 | . . . . . . . . . . . 2 . Repair Stations 6 | . . . 1 . . . 1 . . . 4 . Recycling Units 14 | . 2 . 2 . . . . . 6 . 3 1 Scanalyzers 4 | . . . 1 . . . 1 . . . 2 . Garrison Access 3 | . . . . . . . . 1 . . 2 . Total Hacks 189 | . 29 . 32 . 2 . 14 9 24 . 69 10 Successful 123 | . 22 . 19 . 2 . 9 5 19 . 40 7 Failed 66 | . 7 . 13 . . . 5 4 5 . 29 3 Catastrophic 6 | . . . . . . . 2 1 . . 3 . Database Lockouts . | . . . . . . . . . . . . . Manual 119 | . 23 2 15 . 2 . 9 7 18 . 40 3 Terminals 126 | . 24 . 23 . . . 10 6 17 . 37 9 Fabricators 5 | . . . . . . . . . . . 5 . Repair Stations 15 | . . . 2 . . . 2 . . . 11 . Recycling Units 21 | . 5 . 4 . . . . . 7 . 4 1 Scanalyzers 13 | . . . 3 . . . 2 . . . 8 . Garrison Access 7 | . . . . . . . . 3 . . 4 . Terminal Hacks 42 | . 11 . 4 . 2 . 3 1 8 . 8 5 Record 1 | . . . . . 1 . . . . . . . Part Schematic 2 | . 1 . . . . . . . 1 . . . Prototype ID Bank 2 | . . . . . . . 1 . 1 . . . Open Door 4 | . . . . . . . . . . . . 4 Open DSF 4 | . . . . . . . . . . . 4 . Level Access Points 1 | . 1 . . . . . . . . . . . Branch Access Points 6 | . 1 . 1 . . . 1 1 . . 1 1 Emergency Access Points 1 | . . . . . . . . . 1 . . . Machine Index 1 | . . . . . . . . . 1 . . . Terminal Index 3 | . 1 . . . . . . . 1 . 1 . Recycling Unit Index 2 | . . . . . . . . . 1 . 1 . Scanalyzer Index 1 | . . . . . . . . . 1 . . . Locate Traps 4 | . 4 . . . . . . . . . . . Dispatch Records 1 | . . . 1 . . . . . . . . . Security Status 1 | . . . . . . . . . . . 1 . Recall Investigation 3 | . 1 . 2 . . . . . . . . . Hauler Manifests 1 | . 1 . . . . . . . . . . . Registered Components 1 | . 1 . . . . . . . . . . . Zone Layout 2 | . . . . . . . 1 . 1 . . . Proto ID Catalog 1 | . . . . . 1 . . . . . . . Fabricator Hacks . | . . . . . . . . . . . . . Repair Station Hacks 13 | . . . 2 . . . 2 . . . 9 . Scan Component 8 | . . . 1 . . . 1 . . . 6 . Repair 5 | . . . 1 . . . 1 . . . 3 . Recycling Unit Hacks 4 | . 1 . 2 . . . . . 1 . . . Report Inventory 1 | . 1 . . . . . . . . . . . Retrieve Components 3 | . . . 2 . . . . . 1 . . . Scanalyzer 10 | . . . 3 . . . 2 . . . 5 . Insert Component 1 | . . . . . . . 1 . . . . . Analyze 1 | . . . . . . . 1 . . . . . Retrieve Study 8 | . . . 3 . . . . . . . 5 . Garrison Access Hacks 4 | . . . . . . . . 2 . . 2 . Unlock Access 1 | . . . . . . . . 1 . . . . Seal Access 2 | . . . . . . . . . . . 2 . Coupler Status 1 | . . . . . . . . 1 . . . . Unauthorized Hacks 49 | . 10 . 8 . . . 2 2 10 . 15 2 Terminals 34 | . 7 . 7 . . . 2 2 4 . 11 1 Assimilate 2 | . . . . . . . . . . . 2 . Botnet 32 | . 7 . 7 . . . 2 2 4 . 9 1 Fabricators 1 | . . . . . . . . . . . 1 . Download 1 | . . . . . . . . . . . 1 . Repair Stations . | . . . . . . . . . . . . . Recycling Units 14 | . 3 . 1 . . . . . 6 . 3 1 Reject 2 | . 1 . 1 . . . . . . . . . Tunnel 12 | . 2 . . . . . . . 6 . 3 1 Scanalyzers . | . . . . . . . . . . . . . Garrison Access . | . . . . . . . . . . . . . Data Cores Recovered . | . . . . . . . . . . . . . Used . | . . . . . . . . . . . . . Hacking Detections 56 | . 7 . 11 . . . 5 2 4 . 25 2 Full Trace Events 7 | . . . 1 . . . 1 . . . 4 1 Feedback Events . | . . . . . . . . . . . . . Feedback Blocked . | . . . . . . . . . . . . . Robot Schematics Acquired . | . . . . . . . . . . . . . Robots Built . | . . . . . . . . . . . . . Authchips . | . . . . . . . . . . . . . Time . | . . . . . . . . . . . . . Total Robot Build Rating . | . . . . . . . . . . . . . Part Schematics Acquired 4 | . 1 . . . . . 1 . 1 . 1 . Parts Built . | . . . . . . . . . . . . . Authchips . | . . . . . . . . . . . . . Time . | . . . . . . . . . . . . . Total Part Build Rating . | . . . . . . . . . . . . . Part Studies Acquired 8 | . . . 3 . . . . . . . 5 . Parts Repaired 4 | . . . 1 . . . 1 . . . 2 . Time 196 | . . . 32 . . . 38 . . . 126 . Parts Recycled . | . . . . . . . . . . . . . Recycled Matter . | . . . . . . . . . . . . . Retrieved Matter . | . . . . . . . . . . . . . Retrieved Components 12 | . . . 11 . . . . . 1 . . . Parts Scanalyzed 1 | . . . . . . . 1 . . . . . Part Schematics Acquired 1 | . . . . . . . 1 . . . . . Parts Damaged . | . . . . . . . . . . . . . Bothacking | -11 -10 -10 -9 -9 -9 -8 -8 -8 -8 -8 -6 -6 ------------ Run | Yrd Mat Min Mat Min Exi Min Mat Sto Rec Scr Fac Ext Used RIF Installer . | . . . . . . . . . . . . . Robots Hacked 2 | . . . . . . . . . . . 2 . Non-combat 2 | . . . . . . . . . . . 2 . Combat . | . . . . . . . . . . . . . Robot Hacks Applied 3 | . . . . . . . . . . . 3 . no_distress 2 | . . . . . . . . . . . 2 . find_fabricator 1 | . . . . . . . . . . . 1 . Relay Couplers Released . | . . . . . . . . . . . . . Fabnet Peak Effective % . | . . . . . . . . . . . . . Robots Rewired 11 | . . . . . . . . . 8 . . 3 Allies Hacked 1 | . . . . . . . . . . . 1 . Hacks Repelled . | . . . . . . . . . . . . . Allies | -11 -10 -10 -9 -9 -9 -8 -8 -8 -8 -8 -6 -6 -------- Run | Yrd Mat Min Mat Min Exi Min Mat Sto Rec Scr Fac Ext Total Allies 31 | . . . . . . . . 12 8 . 2 9 Largest Group 17 | . . . . . . . . 10 17 17 17 7 Highest-Rated Group 311 | . . . . . . . . 173 311 311 311 196 Highest-Rated Ally 39 | . . . . . . . . 31 34 34 34 39 Total Orders 3 | . . . . . . . . . . . 3 . STAY 1 | . . . . . . . . . . . 1 . FOLLOW 1 | . . . . . . . . . . . 1 . TUNNEL 1 | . . . . . . . . . . . 1 . Ally Attacks 175 | . . . . . . . . 5 9 . 84 77 Total Damage 3205 | . . . . . . . . 106 109 . 1558 1432 Kills 30 | . . . . . . . . 1 1 . 18 10 Allies Corrupted . | . . . . . . . . . . . . . Allies Melted 3 | . . . . . . . . . . . 2 1 Intel | -11 -10 -10 -9 -9 -9 -8 -8 -8 -8 -8 -6 -6 ------- Run | Yrd Mat Min Mat Min Exi Min Mat Sto Rec Scr Fac Ext Active Infowar (turns) 22032 | 151 1035 949 2633 1095 986 1665 1110 502 1210 2039 4891 3766 Optics 298 | . . . . . . . . . . . . 298 Sensors 9025 | . . . 2423 1095 984 9 . . . . 1046 3468 Terrain 10059 | . . . 210 . . 1146 1108 502 1210 2039 3844 . Traps 1537 | . . . . . . 510 2 . . . 662 363 Seismic 2135 | 151 1035 949 . . . . . . . . . . Cloaking 2 | . . . . . 2 . . . . . . . ECM 1 | . . . . . . . . . . . 1 . Robot Analysis Total . | . . . . . . . . . . . . . Derelict Logs Recovered 3 | . . 1 . 2 . . . . . . . . Drone Launches . | . . . . . . . . . . . . . Drone Recoveries . | . . . . . . . . . . . . . Exploration | -11 -10 -10 -9 -9 -9 -8 -8 -8 -8 -8 -6 -6 ------------- Run | Yrd Mat Min Mat Min Exi Min Mat Sto Rec Scr Fac Ext Turns Passed 26725 | 219 1035 949 2832 1281 989 1712 1136 762 1210 2039 6754 5807 Spaces Moved 15492 | 109 679 686 1775 711 664 798 627 339 617 1152 3844 3491 Core 10 | 7 . . . . . . . . . . 3 . Treads 5492 | . . . 446 711 477 . . 219 617 1152 1870 . Legs 9990 | 102 679 686 1329 . 187 798 627 120 . . 1971 3491 Wheels . | . . . . . . . . . . . . . Hover . | . . . . . . . . . . . . . Flight . | . . . . . . . . . . . . . Fastest Speed 50 | 50 120 120 105 160 105 105 108 120 167 167 97 105 Average Speed 131 | 116 120 120 120 160 144 119 116 150 167 167 136 113 Slowest Speed 700 | 190 120 120 240 160 160 180 120 250 167 167 700 330 Overloaded Moves . | . . . . . . . . . . . . . Propulsion Burnouts . | . . . . . . . . . . . . . Robots Hopped . | . . . . . . . . . . . . . Potential Cave-ins 10 | . . . . . . . . 1 . . . 9 Cave-ins Triggered . | . . . . . . . . . . . . . Exploration Rate (%) 69 | 4 97 96 86 97 93 98 35 35 84 60 68 48 Regions Visited 12 Branch Regions 8 Pre-discovered Areas 12 | . 2 . . . . . . . 6 . 3 1 Known Exits Taken 11 | . 1 1 1 1 1 1 1 1 1 1 1 . Unknown Exits Taken 1 | 1 . . . . . . . . . . . . Scrap Searched 9 | . . 1 . 1 . 1 . . . 6 . . Spaces Dug 42 | . . . 2 3 . . 7 3 2 . 22 3 Terrain Destroyed 510 | . 48 40 12 105 . 39 17 132 2 . 82 33 Melee 40 | . . . . 3 . . 7 3 2 . 22 3 Projectile 13 | . . . 2 . . . . 1 . . 3 7 AOE 457 | . 48 40 10 102 . 39 10 128 . . 57 23 Terrain Rammed . | . . . . . . . . . . . . . Walls Destroyed . | . . . . . . . . . . . . . Machines Disabled . | . . . . . . . . . . . . . Actions | -11 -10 -10 -9 -9 -9 -8 -8 -8 -8 -8 -6 -6 --------- Run | Yrd Mat Min Mat Min Exi Min Mat Sto Rec Scr Fac Ext Total 20540 | 185 832 757 2265 785 695 1514 979 513 789 1268 4971 4987 Wait 3689 | 60 96 17 272 3 14 656 275 77 109 112 796 1202 Move 15480 | 108 678 685 1774 710 663 797 626 338 616 1151 3843 3491 Hop . | . . . . . . . . . . . . . Pick Up 92 | 4 6 2 28 2 1 8 7 5 2 2 18 7 Fast Attach 57 | 7 . 1 2 1 4 . . 4 . . 22 16 Attach 37 | . . 1 2 2 4 3 3 4 . . 9 9 Detach 8 | . . . . 2 1 . . . . . 2 3 Swap 177 | . 11 12 47 16 1 11 13 16 . 1 26 23 Drop 129 | . 6 6 32 2 7 7 10 8 2 2 27 20 Fire 589 | 6 35 33 108 34 . 24 27 50 2 . 133 137 Melee 217 | . . . . 12 . 3 17 9 5 . 93 78 Ram . | . . . . . . . . . . . . . Kick 7 | . . . . . . 5 1 . . . 1 . Crush 4 | . . . . 1 . . . 2 . . 1 . Escape Stasis . | . . . . . . . . . . . . . Rewire 54 | . . . . . . . . . 53 . . 1 Trap . | . . . . . . . . . . . . . Miscellaneous . | . . . . . . . . . . . . . Route ------- -11/Scrapyard -10/Materials (discovered 6 exits: *Mat x3 / *Min x2 / [*Sub]) -10/Mines (discovered 2 exits: *Mat x2) -9/Materials (discovered 4 exits: *Mat x3 / *Min) -9/Mines (discovered 3 exits: *Mat x2 / *Exi) -9/Exiles -8/Mines (discovered 2 exits: *Mat x2) -8/Materials (discovered 3 exits: [*Fac] / *Sto x2) -8/Storage (discovered 2 exits: *Rec / Gar) -8/Recycling (discovered 2 exits: *Fac / *Scr) -8/Scraptown -6/Factory (discovered 8 exits: *Fac x4 / *Low x2 / *Ext x2) -6/Extension (discovered 2 exits: *Fac / Cet) History --------- Turn | Location | Event 5 | -11/Scrapyard | Discovered new exit (range 15) 220 | -11/Scrapyard | Entered Materials 314 | -10/Materials | Build established: Mutant 506 | -10/Materials | Discovered new exit (range 16) 624 | -10/Materials | Discovered new exit (range 6) 650 | -10/Materials | Discovered new exit (range 10) 780 | -10/Materials | Identified exit to Mines 851 | -10/Materials | Discovered new exit (range 3) 866 | -10/Materials | Identified exit to Materials 1255 | -10/Materials | Entered Mines 1387 | -10/Mines | Learned Materials emergency access door positions 1420 | -10/Mines | Discovered exit to Materials (range 7) 1467 | -10/Mines | Discovered exit to Materials (range 16) 1980 | -10/Mines | Build established: Scavenger-Mutant 2204 | -10/Mines | Entered Materials 2204 | -9/Materials | Evolved 2 slots: Propulsion x1, Utility x1 2848 | -9/Materials | Repaired Particle Gun+ 3336 | -9/Materials | Discovered new exit (range 5) 3464 | -9/Materials | Identified exit to Materials 3662 | -9/Materials | Discovered new exit (range 13) 3674 | -9/Materials | Identified exit to Mines 3809 | -9/Materials | Discovered exit to Materials (range 16) 4498 | -9/Materials | Discovered exit to Materials (range 16) 4596 | -9/Materials | Build established: Mutant 5036 | -9/Materials | Entered Mines 5043 | -9/Mines | Received a Rocket Launcher from a helpful Derelict 5095 | -9/Mines | Learned Materials terminal intel 5242 | -9/Mines | Assembled infested the area 5304 | -9/Mines | Destroyed 17 combat bots 5444 | -9/Mines | Discovered exit to Materials (range 12) 5759 | -9/Mines | Lost 3 parts (1p1n1w) 5992 | -9/Mines | Deemed a non-threat by the Exiles lab entrance 5992 | -9/Mines | Discovered new exit (range 5) 6072 | -9/Mines | Discovered exit to Materials (range 7) 6276 | -9/Mines | Identified exit to Exiles 6317 | -9/Mines | Entered Exiles 6354 | -9/Exiles | Met 8R-AWN 6383 | -9/Exiles | Met EX-HEX 6468 | -9/Exiles | Met EX-DEC 6509 | -9/Exiles | Visited The Gauntlet 6863 | -9/Exiles | Met EX-BIN 7029 | -9/Exiles | Aligned with FarCom system 7031 | -9/Exiles | Given EX-Vault access code 7068 | -9/Exiles | Opened EX-Vault 7076 | -9/Exiles | Found Prototype Energy Gun 7076 | -9/Exiles | Identified AWS/Thermal 7079 | -9/Exiles | Found Prototype Energy Cannon 7079 | -9/Exiles | Identified YOLO Cannon 7084 | -9/Exiles | Found Prototype Device 7084 | -9/Exiles | Identified Cloak of Protection 7151 | -9/Exiles | Warned to stay clear of 0b10 Research branches 7294 | -9/Exiles | Discovered new exit (range 12) 7305 | -9/Exiles | Identified exit to Mines 7306 | -9/Exiles | Left Exiles lab with YOLO Cannon 7306 | -9/Exiles | Entered Mines 7602 | -8/Mines | Build established: Scavenger-Skirmisher 7615 | -8/Mines | Discovered exit to Materials (range 3) 7915 | -8/Mines | Discovered exit to Materials (range 15) 8349 | -8/Mines | Found a Scrap Suit stashed away for nefarious purposes 8352 | -8/Mines | Found Scrap Suit 8417 | -8/Mines | Core integrity fell below 50% 9018 | -8/Mines | Entered Materials 9018 | -8/Materials | Evolved 2 slots: Propulsion x1, Utility x1 9019 | -8/Materials | Loaded intel: 12 terminal locations 9328 | -8/Materials | Build established: Scavenger-Assassin 10000 | -8/Materials | Identified exit to Storage 10120 | -8/Materials | Repaired Trap Scanner 10133 | -8/Materials | Discovered new exit (range 3) 10154 | -8/Materials | Entered Storage 10165 | -8/Storage | Identified exit to Garrison 10222 | -8/Storage | Met a pair of Derelict thieves 10473 | -8/Storage | Destroyed 7 combat bots 10641 | -8/Storage | Core integrity fell below 50% 10716 | -8/Storage | Identified exit to Recycling 10719 | -8/Storage | Assisted by bots powering up and referring to "LRC-V3" 10884 | -8/Storage | Used back door to open Recycling access 10916 | -8/Storage | Entered Recycling 10916 | -8/Recycling | Accompanied by 9 allies 10917 | -8/Recycling | Met a Zionite searching for Scraptown 11013 | -8/Recycling | Discovered new exit (range 5) 11107 | -8/Recycling | Build established: Commander-Assassin 11950 | -8/Recycling | Scanned before Scraplab entrance 11992 | -8/Recycling | Entered Scraplab 12005 | -8/Recycling | Discovered new exit (range 2) 12005 | -8/Recycling | Identified exit to Scraptown 12126 | -8/Recycling | Entered Scraptown 12126 | -8/Scraptown | Accompanied by 17 allies 12425 | -8/Scraptown | Build established: Commander-Mutant 12514 | -8/Scraptown | Discovered new exit (range 7) 12522 | -8/Scraptown | Identified exit to Factory 12766 | -8/Scraptown | Visited Spacefarers 12931 | -8/Scraptown | Visited Shadow of the Wyrm 12976 | -8/Scraptown | Visited SPCMW 13412 | -8/Scraptown | Heard Great Nut preacher, LISTEN AND RECITE! 13461 | -8/Scraptown | Visited Comm Corps 13542 | -8/Scraptown | Visited Bundlers 13739 | -8/Scraptown | Visited CR-KLE's Repair Center 13751 | -8/Scraptown | CR-KLE repaired 9 parts 13936 | -8/Scraptown | Turned away by UFD registrar 14165 | -8/Scraptown | Entered Factory 14165 | -6/Factory | Accompanied by 17 allies 14165 | -6/Factory | Evolved 4 slots: Power x1, Utility x2, Weapon x1 14166 | -6/Factory | Identified exit to Lower Caves 14301 | -6/Factory | Identified exit to DSF 14468 | -6/Factory | Build established: Commander-Assassin 14696 | -6/Factory | Identified exit to Extension 14851 | -6/Factory | Lost 4 allies 15130 | -6/Factory | Lost 3 allies 15635 | -6/Factory | Lost 3 allies 15846 | -6/Factory | Build established: Assassin 17378 | -6/Factory | Repaired Arm. Treads+ 17393 | -6/Factory | Discovered new exit (range 20) 17452 | -6/Factory | Identified exit to Factory 17616 | -6/Factory | Discovered exit to Factory (range 20) 18157 | -6/Factory | Lost 6 parts (1p3n1u1w) 18457 | -6/Factory | Build established: Hacker-Mutant 19462 | -6/Factory | Discovered exit to Factory (range 9) 19471 | -6/Factory | Allied Derelicts emerged from ambush trap array 19812 | -6/Factory | Repaired Imp. VSS Leg? 20169 | -6/Factory | Build established: Hacker-Assassin 20532 | -6/Factory | Discovered exit to Factory (range 14) 20919 | -6/Factory | Entered Extension 21058 | -6/Extension | Spotted B-75 Beast 21211 | -6/Extension | Core integrity fell below 50% 21284 | -6/Extension | Rescued a captive Derelict 21285 | -6/Extension | Rescued a captive Derelict 21353 | -6/Extension | Rescued a captive Derelict 21354 | -6/Extension | Rescued a captive Derelict 21616 | -6/Extension | Lost 3 allies 21648 | -6/Extension | Identified exit to Cetus 21648 | -6/Extension | Watched by a mysterious "MATRIX" hacker 21650 | -6/Extension | Rescued a captive Derelict 21651 | -6/Extension | Rescued a captive Derelict 21760 | -6/Extension | Lost 3 allies 21769 | -6/Extension | Disrupted transfer network 24140 | -6/Extension | Lost 3 parts (2p1w) 24940 | -6/Extension | Build established: Mutant 25379 | -6/Extension | Core integrity fell below 20% 25809 | -6/Extension | Spotted B-75 Beast 25819 | -6/Extension | Discovered exit to Factory (range 3) 25879 | -6/Extension | Lost 7 parts (2p2n1u2w) 26365 | -6/Extension | Build established: Scavenger-Mutant 26488 | -6/Extension | Destroyed B-75 Beast 26726 | -6/Extension | Destroyed by B-75 Beast with Magnetic Acceleration Cannon Last Messages --------------- 26583_ A-15 Conveyor system corrupted by crushing effect. 26584_ A-15 Conveyor system terminally corrupted. 26585_ Acquired 10 matter. 26587_ Dropped Lrg. Storage Unit. 26589_ Acquired 10 matter. 26602_ System corrupted: Matter fused (-6). 26602_ Acquired 4 matter. 26606_ Acquired 2 matter. 26636_ System corrupted: Heat flow error (+284). 26639_ Power failure, Rnf. Deuterium Engine shutdown. 26643_ Overheating: Energy bleed (-115). 26645_ Acquired 12 matter. 26648_ T-07 Excavator destroyed. 26670_ AJZ